[Event "34rd NATO Championship 2024"]
[Site "Rhodes"]
[Date "2024.10.23"]
[Round "4.33"]
[White "Ivbulis, Martins"]
[Black "Tikerpuu, Mati"]
[Result "1-0"]
[ECO "D00"]
[WhiteElo "1891"]
[BlackElo "1933"]
[Annotator "RC"]
[PlyCount "117"]
[EventDate "2024.09.18"]
[EventType "swiss"]
[EventCountry "GRE"]
[SourceTitle "playchess.com"]
[Source "ChessBase"]
[SourceQuality "1"]
[TimeControl "5400+30"]

1. d4 {[%emt 0:00:05]} e6 {[%emt 0:00:09]} 2. Nc3 {[%emt 0:00:12]} d5 {[%emt 1:31:21]} 3. Bf4 {[%emt 0:00:16]} a6 {[%emt 0:00:00]} 4. e3 {[%emt 0:00:13]} Nf6 {[%emt 0:00:00]} 5. Bd3 {[%emt 1:32:14]} c5 6. dxc5 {[%emt 0:00:00]} Bxc5 {[%emt 0:00:00]} 7. e4 {[%emt 0:00:00]} d4 {[%emt 0:00:00]} 8. Nce2 {[%emt 0:00:00]} Bb4+ {[%emt 0:00:00]} 9. c3 {[%emt 0:00:00]} dxc3 {[%emt 0:00:00]} 10. bxc3 {[%emt 0:00:00]} Be7 {[%emt 0:00:00]} 11. Nf3 {[%emt 0:00:00]} Nc6 {[%emt 0:00:00]} 12. O-O {[%emt 0:00:00]} Nh5 {[%emt 0:00:00]} 13. e5 {[%emt 0:00:00]} Nxf4 {[%emt 0:00:00]} 14. Nxf4 {[%emt 0:00:00]} Qa5 {[%emt 0:00:00]} 15. Re1 {[%emt 0:00:00]} Bd7 {[%emt 0:00:00]} 16. Qb3 {[%emt 0:00:00]} Rb8 {[%emt 0:00:00]} 17. Rad1 {[%emt 0:00:00]} Qc7 {[%emt 0:00:00]} 18. Qc4 {[%emt 0:00:00]} b5 {[%emt 0:00:00]} 19. Qe4 {[%emt 0:00:00]} Na5 {[%emt 0:00:00]} 20. Nd4 {[%emt 0:00:00]} Bc6 {[%emt 0:00:00]} 21. Qe2 {[%emt 0:00:00]} g6 {[%emt 0:00:00]} 22. Qg4 {[%emt 0:00:00]} Bd5 {[%emt 0:00:00]} 23. Nxd5 {[%emt 0:00:00]} exd5 {[%emt 0:00:00]} 24. e6 {[%emt 0:00:00]} f6 {[%emt 0:11:00]} 25. h4 {[%emt 0:00:00]} f5 {[%emt 0:00:00]} 26. Qf3 {[%emt 0:00:00]} Nc6 {[%emt 0:00:00]} 27. Qxd5 {[%emt 0:00:00]} Nxd4 {[%emt 0:00:00]} 28. cxd4 {[%emt 0:00:00]} Rd8 {[%emt 0:00:00]} 29. Qb3 {[%emt 0:00:00]} Bxh4 {[%emt 0:00:00]} 30. d5 {[%emt 0:12:30]} Qc5 {[%emt 0:00:56]} 31. Qb2 {[%emt 0:00:00]} O-O {[%emt 0:00:49]} 32. Rc1 {[%emt 0:00:00]} Qe7 {[%emt 0:01:08]} 33. Qb3 {[%emt 0:00:00]} Qa7 {[%emt 0:00:34]} 34. Re2 {[%emt 0:00:00]} Rd6 {[%emt 0:00:24]} 35. a4 {[%emt 0:00:00]} Bg5 {[%emt 0:01:01]} 36. Rce1 {[%emt 0:00:00]} bxa4 {[%emt 0:00:23]} 37. Qxa4 {[%emt 0:00:00]} Be7 {[%emt 0:00:10]} 38. Qa2 {[%emt 0:00:00]} Qd4 {[%emt 0:00:24]} 39. Bc4 {[%emt 0:00:00]} Rc8 {[%emt 0:00:15]} 40. Rc2 {[%emt 0:00:00]} Rb8 {[%emt 0:00:42]} 41. Qa5 {[%emt 0:00:00]} Bd8 {[%emt 0:01:02]} 42. Qa4 {[%emt 0:00:52]} Be7 {[%emt 0:00:18]} 43. Qa5 {[%emt 0:00:25]} Bd8 {[%emt 0:00:06]} 44. Qa1 {[%emt 0:00:01]} Qxa1 {[%emt 0:00:48]} 45. Rxa1 {[%emt 0:00:03]} Ra8 {[%emt 0:00:09]} 46. Rca2 {[%emt 0:01:21]} a5 {[%emt 0:00:24]} 47. Rb1 {[%emt 0:00:01]} Be7 {[%emt 0:00:48]} 48. Rb7 {[%emt 0:00:28]} Kf8 {[%emt 0:00:16]} 49. Ra4 {[%emt 0:00:18]} Rc8 {[%emt 0:00:33]} 50. Kf1 {[%emt 0:00:11]} Rc5 {[%emt 0:01:04]} 51. Ke2 {[%emt 0:00:09]} h5 {[%emt 0:00:35]} 52. Ke3 {[%emt 0:00:25]} Rc8 {[%emt 0:00:34]} 53. Kf4 {[%emt 0:00:30]} Rc5 {[%emt 0:00:28]} 54. Ke5 {[%emt 0:00:26]} Rd8 {[%emt 0:00:35]} 55. Kd4 {[%emt 0:02:22]} Rc6 {[%emt 0:00:12]} 56. Ke5 {[%emt 0:01:32]} Rc5 {[%emt 0:00:14]} 57. f3 {[%emt 0:00:01]} Bd6+ {[%emt 0:01:03]} 58. Kf6 {[%emt 0:00:12]} Rc7 {[%emt 0:00:05]} 59. Rxc7 {[%emt 0:00:06]} 1-0

[Event "34rd NATO Championship 2024"]
[Site "Rhodes"]
[Date "2024.10.23"]
[Round "4.34"]
[White "Allmann, Lauri"]
[Black "Mautone, Valerio"]
[Result "0-1"]
[ECO "E67"]
[WhiteElo "1852"]
[BlackElo "2117"]
[Annotator "RC"]
[PlyCount "86"]
[EventDate "2024.09.18"]
[EventType "swiss"]
[EventCountry "GRE"]
[SourceTitle "playchess.com"]
[Source "ChessBase"]
[SourceQuality "1"]
[TimeControl "5400+30"]

1. c4 {[%emt 0:00:04]} Nf6 {[%emt 0:00:06]} 2. Nc3 {[%emt 0:00:05]} g6 {[%emt 0:00:12]} 3. Nf3 {[%emt 0:01:52]} Bg7 {[%emt 0:00:11]} 4. d4 {[%emt 0:01:46]} d6 {[%emt 0:00:40]} 5. g3 {[%emt 0:01:01]} Nbd7 {[%emt 0:00:48]} 6. Bg2 {[%emt 0:00:47]} O-O {[%emt 0:00:15]} 7. O-O {[%emt 0:01:27]} e5 {[%emt 0:00:32]} 8. dxe5 {[%emt 0:01:56]} dxe5 {[%emt 0:00:05]} 9. Bg5 {[%emt 0:04:14]} h6 {[%emt 0:00:25]} 10. Bd2 {[%emt 0:01:49]} c6 {[%emt 0:00:40]} 11. Qc1 {[%emt 0:01:58]} Kh7 {[%emt 0:00:25]} 12. Qc2 {[%emt 0:01:23]} Qe7 {[%emt 0:00:49]} 13. Rad1 {[%emt 0:03:12]} Nc5 {[%emt 0:02:46]} 14. Nxe5 {[%emt 0:20:26]} Qxe5 {[%emt 0:01:32]} 15. Bf4 {[%emt 0:03:44]} Qh5 {[%emt 0:04:57]} 16. Bd6 {[%emt 0:02:46]} Re8 {[%emt 0:02:27]} 17. b4 {[%emt 0:08:33]} Bf5 {[%emt 0:02:11]} 18. Qc1 {[%emt 0:03:21]} Nce4 {[%emt 0:01:00]} 19. Nxe4 {[%emt 0:01:57]} Nxe4 {[%emt 0:00:55]} 20. Bf3 {[%emt 0:04:09]} Qg5 {[%emt 0:01:38]} 21. Bf4 {[%emt 0:02:40]} Qe7 {[%emt 0:01:53]} 22. g4 {[%emt 0:04:12]} Bc8 {[%emt 0:03:26]} 23. a3 {[%emt 0:04:53]} Ng5 {[%emt 0:01:43]} 24. Bd6 {[%emt 0:06:23]} Nxf3+ {[%emt 0:01:19]} 25. exf3 {[%emt 0:00:03]} Qf6 {[%emt 0:00:57]} 26. Rd3 {[%emt 0:01:43]} a5 {[%emt 0:08:55]} 27. b5 {[%emt 0:02:41]} cxb5 {[%emt 0:01:38]} 28. cxb5 {[%emt 0:00:18]} Be6 {[%emt 0:01:51]} 29. Bc7 {[%emt 0:01:53]} Qb2 {[%emt 0:04:56]} 30. Qxb2 {[%emt 0:07:06]} Bxb2 {[%emt 0:01:05]} 31. Rb1 {[%emt 0:00:11]} Bc4 {[%emt 0:04:38]} 32. Rd7 {[%emt 0:04:24]} Bxa3 {[%emt 0:01:24]} 33. b6 {[%emt 0:00:37]} Be6 {[%emt 0:04:26]} 34. Rd3 {[%emt 0:00:44]} Bf8 {[%emt 0:00:32]} 35. Kg2 {[%emt 0:01:00]} a4 {[%emt 0:00:36]} 36. Kg3 {[%emt 0:01:42]} a3 {[%emt 0:00:19]} 37. f4 {[%emt 0:01:00]} a2 {[%emt 0:00:15]} 38. Ra1 {[%emt 0:00:04]} Bg7 {[%emt 0:00:28]} 39. Be5 {[%emt 0:00:18]} Bxe5 {[%emt 0:00:32]} 40. fxe5 {[%emt 0:00:02]} Red8 {[%emt 0:00:57]} 41. Rc3 {[%emt 0:01:16]} Rac8 {[%emt 0:00:19]} 42. Ra3 {[%emt 0:00:44]} Rc6 {[%emt 0:01:29]} 43. h3 {[%emt 0:00:42]} Rxb6 {[%emt 0:00:18]} 0-1

[Event "34rd NATO Championship 2024"]
[Site "Rhodes"]
[Date "2024.10.23"]
[Round "4.35"]
[White "Ivsek, Cveto"]
[Black "Wells, Daniel J"]
[Result "0-1"]
[ECO "A48"]
[WhiteElo "1839"]
[BlackElo "2036"]
[Annotator "RC"]
[PlyCount "58"]
[EventDate "2024.09.18"]
[EventType "swiss"]
[EventCountry "GRE"]
[SourceTitle "playchess.com"]
[Source "ChessBase"]
[SourceQuality "1"]
[TimeControl "5400+30"]

1. d4 {[%emt 0:00:06]} Nf6 {[%emt 0:00:05]} 2. Bf4 {[%emt 0:01:35]} g6 {[%emt 0:00:22]} 3. e3 {[%emt 0:00:38]} Bg7 {[%emt 0:00:08]} 4. Nf3 {[%emt 0:00:48]} O-O {[%emt 0:00:56]} 5. h3 {[%emt 0:01:10]} d6 {[%emt 0:00:33]} 6. Bc4 {[%emt 0:03:24]} Nfd7 {[%emt 0:09:01]} 7. Nc3 {[%emt 0:08:14]} c6 {[%emt 0:04:11]} 8. O-O {[%emt 0:06:38]} b5 {[%emt 0:04:49]} 9. Bb3 {[%emt 0:02:47]} a6 {[%emt 0:04:27]} 10. a3 {[%emt 0:05:53]} Qc7 {[%emt 0:16:16]} 11. Re1 {[%emt 0:15:58]} e5 {[%emt 0:06:12]} 12. Bg3 {[%emt 0:06:51]} Nb6 {[%emt 0:11:25]} 13. Ng5 {[%emt 0:09:39]} N8d7 {[%emt 0:11:52]} 14. Nce4 {[%emt 0:01:47]} d5 {[%emt 0:05:26]} 15. Nd2 {[%emt 0:09:27]} Qd8 {[%emt 0:04:32]} 16. Ngf3 {[%emt 0:02:22]} e4 {[%emt 0:00:33]} 17. Nh2 {[%emt 0:00:35]} Qe7 {[%emt 0:01:35]} 18. a4 {[%emt 0:03:51]} Nf6 {[%emt 0:05:39]} 19. Nhf1 {[%emt 0:06:05]} Nh5 {[%emt 0:03:28]} 20. Bh2 {[%emt 0:00:16]} f5 {[%emt 0:00:56]} 21. axb5 {[%emt 0:00:31]} axb5 {[%emt 0:01:30]} 22. Rxa8 {[%emt 0:00:18]} Nxa8 {[%emt 0:00:04]} 23. Ng3 {[%emt 0:00:59]} Nf6 {[%emt 0:01:00]} 24. Qa1 {[%emt 0:00:43]} Nb6 {[%emt 0:00:43]} 25. Qa5 {[%emt 0:01:01]} Qb7 {[%emt 0:01:59]} 26. Qb4 {[%emt 0:02:57]} Be6 {[%emt 0:01:44]} 27. Ra1 {[%emt 0:00:32]} Ra8 {[%emt 0:00:44]} 28. Rb1 {[%emt 0:00:53]} Bf8 {[%emt 0:00:12]} 29. Qc3 {[%emt 0:00:12]} b4 {[%emt 0:00:06]} 0-1

[Event "34rd NATO Championship 2024"]
[Site "Rhodes"]
[Date "2024.10.23"]
[Round "4.36"]
[White "Brusokas, Eduardas"]
[Black "Korge, Kersti"]
[Result "1-0"]
[ECO "B76"]
[WhiteElo "1932"]
[BlackElo "1854"]
[Annotator "RC"]
[PlyCount "107"]
[EventDate "2024.09.18"]
[EventType "swiss"]
[EventCountry "GRE"]
[SourceTitle "playchess.com"]
[Source "ChessBase"]
[SourceQuality "1"]
[TimeControl "5400+30"]

1. e4 {[%emt 0:00:01]} c5 {[%emt 0:00:05]} 2. Nf3 {[%emt 0:00:04]} d6 {[%emt 0:00:05]} 3. d4 {[%emt 0:00:04]} cxd4 {[%emt 0:00:05]} 4. Nxd4 {[%emt 0:00:05]} Nf6 {[%emt 0:00:05]} 5. Nc3 {[%emt 0:00:05]} g6 {[%emt 0:00:07]} 6. Be3 {[%emt 0:00:08]} Bg7 {[%emt 0:00:24]} 7. f3 {[%emt 0:00:17]} O-O {[%emt 0:00:11]} 8. Be2 {[%emt 0:00:16]} Nc6 {[%emt 0:00:11]} 9. Qd2 {[%emt 0:00:27]} Nxd4 {[%emt 0:01:07]} 10. Bxd4 {[%emt 0:00:10]} Qa5 {[%emt 0:00:30]} 11. h4 {[%emt 0:06:21]} h5 {[%emt 0:00:08]} 12. O-O {[%emt 0:05:05]} Be6 {[%emt 0:01:35]} 13. Rfd1 {[%emt 0:09:40]} Rfe8 {[%emt 0:04:41]} 14. Nb5 {[%emt 0:05:38]} Qxd2 {[%emt 0:00:10]} 15. Rxd2 {[%emt 0:00:01]} Rec8 {[%emt 0:04:55]} 16. c3 {[%emt 0:01:44]} a6 {[%emt 0:01:41]} 17. Na3 {[%emt 0:00:13]} Nd7 {[%emt 0:01:06]} 18. Bxg7 {[%emt 0:03:24]} Kxg7 {[%emt 0:00:06]} 19. Nc2 {[%emt 0:00:25]} Ne5 {[%emt 0:02:33]} 20. Ne3 {[%emt 0:01:46]} Nc4 {[%emt 0:01:45]} 21. Bxc4 {[%emt 0:02:39]} Bxc4 {[%emt 0:00:11]} 22. Nd5 {[%emt 0:00:16]} Bxd5 {[%emt 0:00:30]} 23. exd5 {[%emt 0:00:33]} Rc4 {[%emt 0:03:54]} 24. Re1 {[%emt 0:01:51]} Kf6 {[%emt 0:00:33]} 25. g3 {[%emt 0:04:16]} Rac8 {[%emt 0:00:59]} 26. Kf2 {[%emt 0:22:20]} b5 {[%emt 0:00:41]} 27. Rde2 {[%emt 0:03:20]} R8c7 {[%emt 0:00:15]} 28. Re4 {[%emt 0:00:47]} a5 {[%emt 0:02:17]} 29. a3 {[%emt 0:02:33]} R4c5 {[%emt 0:01:05]} 30. Rf4+ {[%emt 0:00:56]} Kg7 {[%emt 0:00:14]} 31. Rfe4 {[%emt 0:00:52]} Rxd5 {[%emt 0:01:17]} 32. Rxe7 {[%emt 0:00:10]} Rxe7 {[%emt 0:00:23]} 33. Rxe7 {[%emt 0:00:01]} Rd2+ {[%emt 0:00:31]} 34. Re2 {[%emt 0:00:09]} Rxe2+ {[%emt 0:00:55]} 35. Kxe2 {[%emt 0:00:01]} Kf6 {[%emt 0:00:22]} 36. a4 {[%emt 0:13:44]} bxa4 {[%emt 0:03:48]} 37. Kd3 {[%emt 0:00:11]} Ke5 {[%emt 0:01:44]} 38. Kc4 {[%emt 0:00:11]} d5+ {[%emt 0:00:31]} 39. Kb5 {[%emt 0:00:11]} a3 {[%emt 0:00:11]} 40. bxa3 {[%emt 0:00:01]} d4 {[%emt 0:00:24]} 41. cxd4+ {[%emt 0:00:16]} Kxd4 {[%emt 0:00:13]} 42. Kxa5 {[%emt 0:00:03]} Ke3 {[%emt 0:00:16]} 43. Kb4 {[%emt 0:00:26]} Kxf3 {[%emt 0:00:07]} 44. a4 {[%emt 0:00:04]} Kxg3 {[%emt 0:00:10]} 45. a5 {[%emt 0:00:09]} f5 {[%emt 0:00:06]} 46. a6 {[%emt 0:00:29]} f4 {[%emt 0:00:07]} 47. a7 {[%emt 0:00:29]} Kxh4 {[%emt 0:00:27]} 48. a8=Q {[%emt 0:00:07]} g5 {[%emt 0:00:12]} 49. Qh1+ {[%emt 0:01:11]} Kg4 {[%emt 0:00:07]} 50. Qg2+ {[%emt 0:01:37]} Kf5 {[%emt 0:01:41]} 51. Qh3+ {[%emt 0:00:07]} Kg6 {[%emt 0:00:49]} 52. Qe6+ {[%emt 0:00:07]} Kg7 {[%emt 0:00:12]} 53. Qf5 {[%emt 0:00:15]} Kh6 {[%emt 0:00:16]} 54. Qf6+ {[%emt 0:00:23]} 1-0

[Event "34rd NATO Championship 2024"]
[Site "Rhodes"]
[Date "2024.10.23"]
[Round "4.38"]
[White "Spatrisano, Diego"]
[Black "Van de Walle, Rob"]
[Result "0-1"]
[ECO "D02"]
[WhiteElo "1829"]
[BlackElo "1900"]
[Annotator "RC"]
[PlyCount "76"]
[EventDate "2024.09.18"]
[EventType "swiss"]
[EventCountry "GRE"]
[SourceTitle "playchess.com"]
[Source "ChessBase"]
[SourceQuality "1"]
[TimeControl "5400+30"]

1. Nf3 {[%emt 0:00:10]} d5 {[%emt 0:00:05]} 2. g3 {[%emt 0:00:22]} Nf6 {[%emt 0:00:29]} 3. Bg2 {[%emt 0:00:22]} Nc6 {[%emt 0:01:29]} 4. d4 {[%emt 0:00:48]} Bf5 {[%emt 0:03:00]} 5. O-O {[%emt 0:01:02]} e6 {[%emt 0:00:59]} 6. a3 {[%emt 0:03:33]} Be7 {[%emt 0:06:40]} 7. Nc3 {[%emt 0:04:58]} O-O {[%emt 0:01:38]} 8. Bf4 {[%emt 0:09:08]} h6 {[%emt 0:06:14]} 9. Ne5 {[%emt 0:07:27]} Qc8 {[%emt 0:10:14]} 10. Nb5 {[%emt 0:18:10]} Ne8 {[%emt 0:16:33]} 11. g4 {[%emt 0:14:10]} Bh7 {[%emt 0:03:40]} 12. e3 {[%emt 0:01:11]} f6 {[%emt 0:02:30]} 13. Nd3 {[%emt 0:02:51]} a6 {[%emt 0:02:02]} 14. Nc3 {[%emt 0:00:23]} Bd6 {[%emt 0:04:34]} 15. h3 {[%emt 0:06:40]} Bxf4 {[%emt 0:13:59]} 16. Nxf4 {[%emt 0:03:04]} Ne7 {[%emt 0:00:31]} 17. Nce2 {[%emt 0:03:14]} g5 {[%emt 0:01:01]} 18. Nd3 {[%emt 0:00:27]} Nd6 {[%emt 0:01:36]} 19. Qc1 {[%emt 0:02:25]} b6 {[%emt 0:03:22]} 20. f4 {[%emt 0:01:42]} Be4 {[%emt 0:01:09]} 21. Ng3 {[%emt 0:00:43]} Bxg2 {[%emt 0:00:13]} 22. Kxg2 {[%emt 0:00:10]} Ne4 {[%emt 0:04:42]} 23. c4 {[%emt 0:07:25]} c5 {[%emt 0:04:44]} 24. cxd5 {[%emt 0:03:33]} exd5 {[%emt 0:00:06]} 25. dxc5 {[%emt 0:00:43]} Nxc5 {[%emt 0:01:26]} 26. Nxc5 {[%emt 0:00:37]} bxc5 {[%emt 0:00:01]} 27. Qc2 {[%emt 0:00:35]} Rb8 {[%emt 0:01:20]} 28. Rad1 {[%emt 0:00:22]} Qb7 {[%emt 0:01:05]} 29. Qxc5 {[%emt 0:02:43]} d4+ {[%emt 0:01:50]} 30. e4 {[%emt 0:00:36]} Rfc8 {[%emt 0:01:07]} 31. Qxd4 {[%emt 0:00:40]} Rc2+ {[%emt 0:00:38]} 32. Kh1 {[%emt 0:02:09]} Qxb2 {[%emt 0:01:08]} 33. Qg1 {[%emt 0:02:53]} Qxa3 {[%emt 0:00:38]} 34. Ra1 {[%emt 0:00:52]} Qd3 {[%emt 0:01:01]} 35. Qa7 {[%emt 0:01:16]} Nc6 {[%emt 0:01:28]} 36. Qg1 {[%emt 0:00:34]} Rbb2 {[%emt 0:00:31]} 37. Rad1 {[%emt 0:00:18]} Qb3 {[%emt 0:00:45]} 38. f5 {[%emt 0:00:32]} Qa2 {[%emt 0:00:18]} 0-1

[Event "34rd NATO Championship 2024"]
[Site "Rhodes"]
[Date "2024.10.23"]
[Round "4.39"]
[White "Voroblievas, Arturas"]
[Black "Kruit, Erik"]
[Result "0-1"]
[ECO "B32"]
[WhiteElo "1819"]
[BlackElo "1899"]
[Annotator "NA RC"]
[PlyCount "60"]
[EventDate "2024.09.18"]
[EventType "swiss"]
[EventCountry "GRE"]
[SourceTitle "playchess.com"]
[Source "ChessBase"]
[SourceQuality "1"]
[TimeControl "5400+30"]

1. e4 {[%emt 0:00:04]} c5 {[%emt 0:00:09]} 2. Nf3 {[%emt 0:00:05]} Nc6 {[%emt 0:00:07]} 3. d4 {[%emt 0:00:08]} cxd4 {[%emt 0:00:03]} 4. Nxd4 {[%emt 0:00:05]} e5 {[%emt 0:00:25]} 5. Nb5 {[%emt 0:00:05]} a6 {[%emt 0:00:55]} 6. Nd6+ {[%emt 0:00:07]} Bxd6 {[%emt 0:00:07]} 7. Qxd6 {[%emt 0:00:07]} Qf6 {[%emt 0:00:04]} 8. Qd1 {[%emt 0:00:08]} Qg6 {[%emt 0:00:15]} 9. Nc3 {[%emt 0:00:10]} Nge7 {[%emt 0:00:19]} 10. Be3 {[%emt 0:05:55]} d5 {[%emt 0:02:03]} 11. exd5 {[%emt 0:00:23]} Nb4 {[%emt 0:00:52]} 12. Rc1 {[%emt 0:01:46]} Bf5 {[%emt 0:00:10]} 13. d6 {[%emt 0:10:25]} Rd8 {[%emt 0:02:49]} 14. Bc5 {[%emt 0:04:29]} Nxc2+ {[%emt 0:04:26]} 15. Rxc2 {[%emt 0:00:57]} Bxc2 {[%emt 0:00:12]} 16. Qf3 {[%emt 0:15:21]} e4 {[%emt 0:07:59]} 17. Qh3 {[%emt 0:05:49]} Nf5 {[%emt 0:07:52]} 18. Nd5 {[%emt 0:04:10]} Nxd6 {[%emt 0:11:38]} 19. Nc7+ {[%emt 0:00:56]} Kf8 {[%emt 0:00:19]} 20. Qa3 {[%emt 0:13:58]} h5 {[%emt 0:03:19]} 21. Nd5 {[%emt 0:02:04]} Rh6 {[%emt 0:10:11]} 22. Be3 {[%emt 0:03:24]} Qg4 {[%emt 0:02:25]} 23. Be2 {[%emt 0:03:42]} Qxg2 {[%emt 0:00:43]} 24. Rf1 {[%emt 0:01:26]} Rh8 {[%emt 0:03:45]} 25. Bf4 {[%emt 0:01:35]} Qg6 {[%emt 0:00:35]} 26. Qc3 {[%emt 0:09:33]} Qe6 {[%emt 0:10:53]} 27. Qc7 {[%emt 0:02:40]} Rd7 {[%emt 0:03:45]} 28. Qb8+ {[%emt 0:07:21]} Ne8 {[%emt 0:01:24]} 29. Nc7 {[%emt 0:00:22]} Qe7 {[%emt 0:01:13]} 30. Nxe8 {[%emt 0:03:32]} Qb4+ {[%emt 0:00:51]} 0-1

[Event "34rd NATO Championship 2024"]
[Site "Rhodes"]
[Date "2024.10.23"]
[Round "4.40"]
[White "Farrell, John"]
[Black "Bouchard, Pier-Alex"]
[Result "1-0"]
[ECO "E72"]
[WhiteElo "1898"]
[BlackElo "1818"]
[Annotator "NA RC"]
[PlyCount "49"]
[EventDate "2024.09.18"]
[EventType "swiss"]
[EventCountry "GRE"]
[SourceTitle "playchess.com"]
[Source "ChessBase"]
[SourceQuality "1"]
[TimeControl "5400+30"]

1. c4 {[%emt 0:00:03]} Nf6 {[%emt 0:00:18]} 2. g3 {[%emt 0:00:05]} g6 {[%emt 0:00:15]} 3. Bg2 {[%emt 0:00:05]} Bg7 {[%emt 0:00:06]} 4. Nc3 {[%emt 0:00:05]} c6 {[%emt 0:00:49]} 5. e4 {[%emt 0:00:08]} e5 {[%emt 0:00:58]} 6. Nge2 {[%emt 0:00:27]} d6 {[%emt 0:00:55]} 7. O-O {[%emt 0:00:09]} O-O {[%emt 0:00:13]} 8. d4 {[%emt 0:02:50]} Bg4 {[%emt 0:09:05]} 9. h3 {[%emt 0:00:17]} Bd7 {[%emt 0:00:12]} 10. d5 {[%emt 0:01:09]} cxd5 {[%emt 0:01:22]} 11. cxd5 {[%emt 0:00:16]} Na6 {[%emt 0:00:54]} 12. Be3 {[%emt 0:00:28]} h6 {[%emt 0:04:25]} 13. Qb3 {[%emt 0:03:48]} b6 {[%emt 0:00:28]} 14. Qa3 {[%emt 0:02:53]} Nc7 {[%emt 0:07:22]} 15. Qxd6 {[%emt 0:01:51]} Nh7 {[%emt 0:02:40]} 16. Qa3 {[%emt 0:06:41]} Nb5 {[%emt 0:08:58]} 17. Nxb5 {[%emt 0:01:07]} Bxb5 {[%emt 0:00:08]} 18. Rfe1 {[%emt 0:00:10]} f5 {[%emt 0:05:37]} 19. f4 {[%emt 0:00:31]} exf4 {[%emt 0:02:22]} 20. Nxf4 {[%emt 0:00:35]} Qf6 {[%emt 0:12:18]} 21. Ne6 {[%emt 0:00:58]} Rf7 {[%emt 0:01:09]} 22. Bd4 {[%emt 0:00:24]} Qxd4+ {[%emt 0:01:36]} 23. Nxd4 {[%emt 0:00:11]} Bxd4+ {[%emt 0:00:06]} 24. Kh1 {[%emt 0:00:30]} fxe4 {[%emt 0:00:17]} 25. Qb4 {[%emt 0:00:21]} 1-0

[Event "34rd NATO Championship 2024"]
[Site "Rhodes"]
[Date "2024.10.23"]
[Round "4.41"]
[White "Skaburskis, Martynas"]
[Black "Anghel, Iulian-Mihai"]
[Result "1/2-1/2"]
[ECO "A47"]
[WhiteElo "1893"]
[BlackElo "2164"]
[Annotator "RC"]
[PlyCount "72"]
[EventDate "2024.09.18"]
[EventType "swiss"]
[EventCountry "GRE"]
[SourceTitle "playchess.com"]
[Source "ChessBase"]
[SourceQuality "1"]
[TimeControl "5400+30"]

1. d4 {[%emt 0:00:02]} Nf6 {[%emt 0:00:10]} 2. Bf4 {[%emt 0:00:15]} e6 {[%emt 0:03:09]} 3. e3 {[%emt 0:00:23]} b6 {[%emt 0:00:36]} 4. Nf3 {[%emt 0:00:46]} Bb7 {[%emt 0:00:04]} 5. Nbd2 {[%emt 0:00:39]} h6 {[%emt 0:05:16]} 6. Bg3 {[%emt 0:05:44]} Be7 {[%emt 0:12:52]} 7. c3 {[%emt 0:00:29]} O-O {[%emt 0:00:07]} 8. Bd3 {[%emt 0:00:38]} Nh5 {[%emt 0:05:57]} 9. O-O {[%emt 0:07:29]} f5 {[%emt 0:11:32]} 10. Ne5 {[%emt 0:01:34]} Nxg3 {[%emt 0:01:06]} 11. hxg3 {[%emt 0:00:17]} Qe8 {[%emt 0:00:26]} 12. Be2 {[%emt 0:05:40]} d6 {[%emt 0:15:40]} 13. Bh5 {[%emt 0:02:15]} Qd8 {[%emt 0:00:02]} 14. Bf3 {[%emt 0:13:02]} c6 {[%emt 0:08:54]} 15. Ng6 {[%emt 0:02:41]} Rf6 {[%emt 0:00:15]} 16. Nf4 {[%emt 0:02:48]} Nd7 {[%emt 0:13:04]} 17. Qb3 {[%emt 0:05:18]} d5 {[%emt 0:00:32]} 18. Be2 {[%emt 0:10:23]} g5 {[%emt 0:06:33]} 19. Nh5 {[%emt 0:02:14]} Rf8 {[%emt 0:04:56]} 20. Qc2 {[%emt 0:00:25]} Nf6 {[%emt 0:02:12]} 21. Nxf6+ {[%emt 0:04:01]} Rxf6 {[%emt 0:00:11]} 22. Nf3 {[%emt 0:04:16]} g4 {[%emt 0:01:56]} 23. Ne5 {[%emt 0:01:58]} h5 {[%emt 0:01:00]} 24. f3 {[%emt 0:01:27]} Bd6 {[%emt 0:01:36]} 25. fxg4 {[%emt 0:00:47]} hxg4 {[%emt 0:00:18]} 26. Kf2 {[%emt 0:03:03]} Rh6 {[%emt 0:01:21]} 27. Rh1 {[%emt 0:01:27]} Qg5 {[%emt 0:00:28]} 28. Rxh6 {[%emt 0:04:37]} Qxh6 {[%emt 0:00:02]} 29. Qd1 {[%emt 0:01:31]} Bxe5 {[%emt 0:01:13]} 30. dxe5 {[%emt 0:00:15]} c5 {[%emt 0:00:07]} 31. Qh1 {[%emt 0:01:24]} Qxh1 {[%emt 0:01:31]} 32. Rxh1 {[%emt 0:00:11]} Kg7 {[%emt 0:00:42]} 33. Bb5 {[%emt 0:01:14]} Rd8 {[%emt 0:00:19]} 34. Rd1 {[%emt 0:02:04]} Kf7 {[%emt 0:01:37]} 35. Rh1 {[%emt 0:03:05]} Kg7 {[%emt 0:00:13]} 36. Rd1 {[%emt 0:00:40]} Kf7 {[%emt 0:00:52]} 1/2-1/2

[Event "34rd NATO Championship 2024"]
[Site "Rhodes"]
[Date "2024.10.23"]
[Round "4.42"]
[White "Sherpa, Ngadi"]
[Black "Ulusoy, Mustafa"]
[Result "1/2-1/2"]
[ECO "B12"]
[WhiteElo "1882"]
[BlackElo "1785"]
[Annotator "NA RC"]
[PlyCount "30"]
[EventDate "2024.09.18"]
[EventType "swiss"]
[EventCountry "GRE"]
[SourceTitle "playchess.com"]
[Source "ChessBase"]
[SourceQuality "1"]
[TimeControl "5400+30"]

1. e4 {[%emt 0:00:03]} c6 {[%emt 0:00:21]} 2. d4 {[%emt 0:00:17]} d5 {[%emt 0:00:15]} 3. e5 {[%emt 0:00:20]} Bf5 {[%emt 0:00:09]} 4. h4 {[%emt 0:01:05]} h6 {[%emt 0:00:08]} 5. g4 {[%emt 0:01:07]} Bh7 {[%emt 0:00:13]} 6. Bd3 {[%emt 0:00:19]} Bxd3 {[%emt 0:00:33]} 7. Qxd3 {[%emt 0:00:46]} e6 {[%emt 0:00:09]} 8. g5 {[%emt 0:00:47]} hxg5 {[%emt 0:00:49]} 9. Bxg5 {[%emt 0:00:41]} Be7 {[%emt 0:00:07]} 10. f4 {[%emt 0:04:46]} Bxg5 {[%emt 0:02:37]} 11. fxg5 {[%emt 0:00:38]} Ne7 {[%emt 0:00:32]} 12. Nf3 {[%emt 0:01:03]} g6 {[%emt 0:00:53]} 13. Nbd2 {[%emt 0:01:06]} Nd7 {[%emt 0:02:21]} 14. Qb3 {[%emt 0:02:02]} Qb6 {[%emt 0:01:05]} 15. O-O-O {[%emt 0:01:10]} Nf5 {[%emt 0:05:57]} 1/2-1/2